bitfinex/quotes_BTCUSD_20240828
["timestamp","ask_amount","ask_price","bid_price","bid_amount"]
[1724855844989,0.502806,59665.0,59664.0,0.0008998]
[1724855845245,0.502806,59665.0,59664.0,0.0048998]
[1724855845471,0.83801,59665.0,59664.0,0.01453608]
[1724855845704,0.83901,59665.0,59664.0,0.0088998]
[1724855846165,0.503624,59665.0,59664.0,0.0018998]
[1724855846408,0.504624,59665.0,59664.0,0.0018998]
[1724855846621,0.001818,59665.0,59664.0,0.0018998]
[1724855846800,0.000818,59665.0,59664.0,0.01549016]
[1724855847045,0.000818,59665.0,59664.0,0.01449016]
[1724855847248,0.001818,59665.0,59664.0,0.18909516]
[1724855847455,0.001818,59665.0,59664.0,0.19409516]
[1724855847663,0.001818,59665.0,59664.0,0.02649016]
[1724855848140,0.001818,59665.0,59664.0,0.18909516]
[1724855848377,0.001818,59665.0,59664.0,0.02149016]
[1724855848604,0.000818,59665.0,59664.0,0.01449016]
[1724855849040,0.001818,59665.0,59664.0,0.19109516]
[1724855849611,0.001818,59665.0,59664.0,0.02349016]
[1724855849807,0.002818,59665.0,59664.0,0.02949016]
[1724855850014,0.002818,59665.0,59664.0,0.19709516]
[1724855851671,0.002818,59665.0,59664.0,0.02949016]
[1724855852119,0.002818,59665.0,59664.0,0.19709516]
[1724855852555,0.002818,59665.0,59664.0,0.53565717]
[1724855852768,0.002818,59665.0,59664.0,1.20272516]
[1724855853191,0.002818,59665.0,59664.0,0.02949016]
[1724855853192,0.505624,59665.0,59664.0,0.02949016]
[1724855853445,0.17042,59665.0,59664.0,0.02949016]
[1724855853660,0.002818,59665.0,59664.0,0.0158998]
[1724855853876,0.002818,59665.0,59664.0,0.19709516]
[1724855854295,0.002818,59665.0,59664.0,0.02949016]
[1724855854497,0.002818,59665.0,59664.0,0.19709516]
[1724855856466,0.17042,59665.0,59664.0,0.02949016]
[1724855856675,0.505624,59665.0,59664.0,0.02949016]
[1724855856884,0.840828,59665.0,59664.0,0.02949016]
[1724855857092,0.840828,59665.0,59664.0,0.0158998]
[1724855857551,0.505624,59665.0,59664.0,0.0158998]
[1724855857755,0.505624,59665.0,59664.0,0.0294542]
[1724855857909,0.002818,59665.0,59664.0,0.1970592]
[1724855858110,0.002818,59665.0,59664.0,0.5953148]
[1724855858310,0.002818,59665.0,59664.0,0.60884167]
[1724855858985,0.002818,59665.0,59664.0,1.34416167]
[1724855859203,0.002818,59665.0,59664.0,1.00895167]
[1724855859620,0.002818,59665.0,59664.0,0.60884167]
[1724855859804,0.001818,59665.0,59664.0,0.59984167]
[1724855860182,0.001818,59665.0,59664.0,0.02042667]
[1724855860386,0.568124,59665.0,59664.0,0.02042667]
[1724855860792,0.568124,59665.0,59664.0,0.0068998]
[1724855860996,0.567124,59665.0,59664.0,0.0008998]
[1724855861295,0.567124,59665.0,59664.0,0.0148998]
[1724855861530,0.568124,59665.0,59664.0,0.0148998]
[1724855861697,0.567124,59665.0,59664.0,0.0098998]
[1724855861899,0.567124,59665.0,59664.0,0.0158998]
[1724855862299,0.567124,59665.0,59664.0,0.0068998]
[1724855862680,0.567124,59665.0,59664.0,0.0148998]
[1724855862885,0.567124,59665.0,59664.0,0.0088998]
[1724855863110,0.902328,59665.0,59664.0,0.0108998]
[1724855863348,0.902328,59665.0,59664.0,0.0028998]
[1724855863349,1.419932,59665.0,59664.0,0.0028998]
[1724855863519,1.419932,59665.0,59664.0,0.0078998]
[1724855863520,1.424932,59665.0,59664.0,0.0078998]
[1724855863723,1.760136,59665.0,59664.0,0.0078998]
[1724855864157,1.92868764,59665.0,59664.0,0.0078998]
[1724855864577,1.424932,59665.0,59664.0,0.0058998]
[1724855864789,1.424932,59665.0,59664.0,0.0008998]
[1724855865001,1.424932,59665.0,59664.0,0.0028998]
[1724855865237,1.760136,59665.0,59664.0,0.0058998]
[1724855865709,1.770136,59665.0,59664.0,0.0018998]
[1724855865936,1.764136,59665.0,59664.0,0.0018998]
[1724855866161,1.764136,59665.0,59664.0,0.0028998]
[1724855866429,1.764136,59665.0,59664.0,0.0018998]
[1724855866430,1.94268764,59665.0,59664.0,0.0018998]
[1724855866678,1.94868764,59665.0,59664.0,0.0008998]
[1724855866908,2.10256204,59665.0,59664.0,0.0018998]
[1724855867145,1.95268764,59665.0,59664.0,0.0018998]
[1724855867390,2.10428883,59665.0,59664.0,0.0018998]
[1724855868177,1.95468764,59665.0,59664.0,0.0018998]
[1724855868420,1.793136,59665.0,59664.0,0.0028998]
[1724855868717,1.774136,59665.0,59664.0,0.0008998]
[1724855868916,1.772136,59665.0,59664.0,0.0008998]
[1724855869164,1.785136,59665.0,59664.0,0.0028998]
[1724855869421,2.23399754,59665.0,59664.0,0.0028998]
[1724855869669,2.38839625,59665.0,59664.0,0.0028998]
[1724855869916,2.37439625,59665.0,59664.0,0.0018998]
[1724855870151,2.22499754,59665.0,59664.0,0.0028998]
[1724855870390,2.37939625,59665.0,59664.0,0.0018998]
[1724855870616,2.07106208,59665.0,59664.0,0.0028998]
[1724855870845,2.55966479,59665.0,59664.0,0.0028998]
[1724855871085,2.55966479,59665.0,59647.0,0.0008998]
[1724855871086,0.005,59655.0,59647.0,0.0008998]
[1724855871326,1.65965,59648.0,59647.0,0.0008998]
[1724855871565,2.05115715,59648.0,59647.0,0.0008998]
[1724855871832,2.05157608,59648.0,59647.0,0.0008998]
[1724855872311,2.17588766,59648.0,59647.0,0.0008998]
[1724855873020,2.19088102,59648.0,59647.0,0.0008998]
[1724855873293,2.10227054,59648.0,59647.0,0.0008998]
[1724855873540,1.98986944,59648.0,59647.0,0.0008998]
[1724855873785,1.98086944,59648.0,59647.0,0.0008998]
[1724855873997,1.66756944,59648.0,59647.0,0.0008998]
[1724855874420,1.83612108,59648.0,59647.0,0.0008998]
[1724855875062,1.66756944,59648.0,59647.0,0.0008998]
[1724855875277,1.65856944,59648.0,59647.0,0.0008998]
[1724855875691,1.66456944,59648.0,59647.0,0.0008998]
[1724855875892,1.65156944,59648.0,59647.0,0.0008998]
[1724855876123,1.65456944,59648.0,59647.0,0.0008998]
[1724855876541,1.65056944,59648.0,59647.0,0.0008998]
[1724855876744,1.65856944,59648.0,59647.0,0.0008998]
[1724855876921,1.65356944,59648.0,59647.0,0.0008998]
[1724855877185,1.98086944,59648.0,59647.0,0.0008998]
[1724855877400,2.07356944,59648.0,59647.0,0.0008998]
[1724855877640,2.24212108,59648.0,59647.0,0.0008998]
[1724855878800,2.24012108,59648.0,59647.0,0.0008998]
[1724855879020,2.24312108,59648.0,59647.0,0.0008998]
[1724855879246,2.25512108,59648.0,59647.0,0.0008998]
[1724855879509,2.08656944,59648.0,59647.0,0.0008998]
[1724855879734,1.66556944,59648.0,59647.0,0.0008998]
[1724855880890,2.00086944,59648.0,59647.0,0.0008998]
[1724855881097,1.74066944,59648.0,59647.0,0.0008998]
[1724855881530,2.07596944,59648.0,59647.0,0.0008998]
[1724855881753,1.90922108,59648.0,59647.0,0.0008998]
[1724855883089,1.91422108,59648.0,59647.0,0.0008998]
[1724855883316,2.24952108,59648.0,59647.0,0.0008998]
[1724855883529,2.08096944,59648.0,59647.0,0.0008998]
[1724855884659,2.07596944,59648.0,59647.0,0.0008998]
[1724855885530,1.74066944,59648.0,59647.0,0.0008998]
[1724855885751,0.0851,59648.0,59647.0,0.0008998]
[1724855885967,0.18765,59648.0,59647.0,0.1403998]
[1724855886186,0.52295,59648.0,59647.0,0.1403998]
[1724855886410,0.52295,59648.0,59647.0,0.01089554]
[1724855886411,0.85825,59648.0,59647.0,0.01089554]
[1724855886644,1.52085,59648.0,59647.0,0.0008998]
[1724855886891,1.52585,59648.0,59647.0,0.0008998]
[1724855887144,1.51985,59648.0,59647.0,0.0008998]
[1724855887377,1.69040164,59648.0,59647.0,0.0008998]
[1724855887603,1.78440164,59648.0,59647.0,0.0008998]
[1724855887819,2.27460164,59648.0,59647.0,0.0008998]
[1724855888029,2.28660164,59648.0,59647.0,0.0008998]
[1724855888242,1.78275,59648.0,59647.0,0.0008998]
[1724855888456,2.11805,59648.0,59647.0,0.0008998]
[1724855889508,2.12105,59648.0,59647.0,0.0008998]
[1724855890134,2.48339238,59648.0,59647.0,0.0008998]
[1724855890341,2.49139238,59648.0,59647.0,0.0008998]
[1724855890761,2.70964119,59648.0,59647.0,0.0008998]
[1724855890974,2.75748978,59648.0,59647.0,0.0008998]
[1724855891180,2.73261298,59648.0,59647.0,0.0008998]
[1724855891387,2.68294402,59648.0,59647.0,0.0008998]
[1724855891614,2.73261298,59648.0,59647.0,0.0008998]
[1724855891823,2.7326138,59648.0,59647.0,0.0008998]
[1724855892055,2.47939238,59648.0,59647.0,0.0008998]
[1724855892720,2.13609238,59648.0,59647.0,0.0008998]
[1724855893229,2.05399238,59648.0,59647.0,0.0008998]
[1724855893492,2.07299238,59648.0,59647.0,0.0008998]
[1724855893706,1.17355,59648.0,59647.0,0.0008998]
[1724855893939,1.18355,59648.0,59647.0,0.0834998]
[1724855894170,1.19755,59648.0,59647.0,0.0834998]
[1724855894377,1.19755,59648.0,59647.0,0.0008998]
[1724855894832,1.17355,59648.0,59647.0,0.0008998]
[1724855895258,1.18155,59648.0,59647.0,0.0008998]
[1724855895489,1.28155,59648.0,59647.0,0.0008998]
[1724855896323,1.29155,59648.0,59647.0,0.0008998]
[1724855896537,1.28355,59648.0,59647.0,0.0008998]
[1724855896750,1.27355,59648.0,59647.0,0.0008998]
[1724855896961,1.28055,59648.0,59647.0,0.0008998]
[1724855897181,1.27755,59648.0,59647.0,0.0008998]
[1724855897408,1.86164738,59648.0,59647.0,0.0008998]
[1724855897631,1.92144738,59648.0,59647.0,0.0008998]
[1724855897841,2.59704738,59648.0,59647.0,0.0008998]
[1724855898083,2.31541716,59648.0,59647.0,0.0008998]
[1724855898290,2.26174738,59648.0,59647.0,0.0008998]
[1724855898513,2.64676503,59648.0,59647.0,0.0008998]
[1724855898739,2.64776503,59648.0,59647.0,0.0008998]
[1724855898956,2.67076503,59648.0,59647.0,0.0008998]
[1724855899456,2.62104738,59648.0,59647.0,0.0008998]
[1724855899871,2.72048269,59648.0,59647.0,0.0008998]
[1724855900307,2.73248269,59648.0,59647.0,0.0008998]
[1724855900928,2.73148269,59648.0,59647.0,0.0008998]
[1724855901341,2.75180435,59648.0,59647.0,8e-07]
[1724855901569,2.65755259,59648.0,59647.0,8e-07]
[1724855902513,2.64955259,59648.0,59647.0,8e-07]
[1724855902775,2.64955259,59648.0,59615.0,0.50540786]
[1724855902776,1.173984,59626.0,59625.0,0.0753]
[1724855903002,0.16774,59616.0,59615.0,0.50540786]
[1724855903518,0.16774,59616.0,59615.0,0.14572166]
[1724855903748,1.17418,59616.0,59615.0,0.14572166]
[1724855903980,1.17418,59616.0,59615.0,0.08542166]
[1724855903981,1.60966,59616.0,59615.0,0.08542166]
[1724855904223,1.60966,59616.0,59610.0,0.088998]
[1724855904224,1.174278,59611.0,59610.0,0.088998]
[1724855904697,1.274278,59611.0,59610.0,0.088998]
[1724855905557,1.277278,59611.0,59610.0,0.088998]
[1724855905995,1.276278,59611.0,59610.0,0.088998]
[1724855906214,1.274278,59611.0,59610.0,0.088998]
[1724855906833,0.93877,59611.0,59610.0,0.088998]
[1724855907289,0.003,59611.0,59610.0,0.088998]
[1724855907495,0.003,59611.0,59610.0,0.657369]
[1724855907701,0.167734,59618.0,59614.0,0.0815]
[1724855907912,0.167735,59618.0,59615.0,0.0811]
[1724855908122,0.1,59617.0,59615.0,0.0751]
[1724855908350,0.1,59617.0,59613.0,0.335496]
[1724855908351,0.167726,59621.0,59617.0,0.167735]
[1724855908567,0.335447,59622.0,59617.0,0.167736]
[1724855908771,0.16771,59627.0,59622.0,0.167722]
[1724855908982,0.335413,59628.0,59623.0,0.066]
[1724855908983,0.167712,59626.0,59623.0,0.066]
[1724855909195,0.167717,59624.0,59623.0,0.07621971]
[1724855909605,0.167715,59625.0,59623.0,0.07621971]
[1724855909817,0.167717,59624.0,59623.0,0.07621971]
[1724855910025,0.167717,59624.0,59623.0,0.07521971]
[1724855910238,0.838587,59624.0,59623.0,0.065]
[1724855910443,0.503152,59624.0,59623.0,0.0751288]
[1724855910644,0.503152,59624.0,59623.0,0.065]
[1724855910853,0.01463828,59627.0,59623.0,0.07510474]
[1724855910854,0.335419,59627.0,59623.0,0.07510474]
[1724855911078,0.335419,59627.0,59624.0,0.081]
[1724855911283,0.838572,59625.0,59624.0,0.081]
[1724855911498,1.006287,59625.0,59605.0,0.33554]
[1724855911719,0.167744,59615.0,59611.0,0.50540786]
[1724855911926,0.167751,59612.0,59605.0,0.335541]
[1724855912159,0.001,59625.0,59612.0,0.01008104]
[1724855912160,0.167749,59613.0,59612.0,0.01008104]
[1724855912368,0.167752,59612.0,59608.0,0.167762]
[1724855912579,0.167754,59611.0,59607.0,0.167765]
[1724855913202,0.16775,59613.0,59610.0,0.240354]
[1724855913885,0.16775,59613.0,59612.0,0.001]
[1724855914609,0.504247,59613.0,59612.0,0.0813]
[1724855914798,0.16875,59613.0,59612.0,0.0813]
[1724855915247,0.504247,59613.0,59612.0,0.0803]
[1724855915449,0.504247,59613.0,59612.0,0.0793]
[1724855915450,0.16775,59613.0,59612.0,0.0793]
[1724855915651,0.16875,59613.0,59612.0,0.0793]
[1724855916065,0.504247,59613.0,59612.0,0.0793]
[1724855916242,0.503247,59613.0,59612.0,0.0793]
[1724855916464,0.504247,59613.0,59612.0,0.0793]
[1724855916829,0.504247,59613.0,59612.0,0.08930505]
[1724855917484,0.002,59613.0,59612.0,0.08930505]
[1724855917892,0.169748,59613.0,59612.0,0.08930505]
[1724855918096,0.505245,59613.0,59612.0,0.08930505]
[1724855918590,0.169748,59613.0,59612.0,0.08930505]
[1724855920018,0.840742,59613.0,59612.0,0.08930505]
[1724855920457,0.840742,59613.0,59612.0,0.01000505]
[1724855920458,1.176239,59613.0,59612.0,0.01000505]
[1724855920662,0.83877,59611.0,59610.0,0.008998]
[1724855921094,0.503262,59611.0,59610.0,0.008998]
[1724855921302,0.167754,59611.0,59610.0,0.008998]
[1724855921529,0.167754,59611.0,59610.0,0.01900897]
[1724855921960,0.503262,59611.0,59610.0,0.01900897]
[1724855922172,0.167754,59611.0,59610.0,0.01900897]
[1724855922436,0.002,59611.0,59610.0,0.591469]
[1724855922764,0.002,59611.0,59610.0,0.926983]
[1724855923012,0.002,59611.0,59610.0,0.60147997]
[1724855923305,0.002,59611.0,59610.0,0.09820897]
[1724855923553,1.655186,59611.0,59610.0,0.01900897]
[1724855924025,1.655186,59611.0,59610.0,0.008998]
[1724855924026,1.755186,59611.0,59610.0,0.008998]
[1724855924251,2.1359024,59611.0,59610.0,0.008998]
[1724855924696,1.29121178,59611.0,59610.0,0.008998]
[1724855925379,1.29021178,59611.0,59610.0,0.008998]
[1724855925852,1.29121178,59611.0,59610.0,0.008998]
[1724855926087,1.29021178,59611.0,59610.0,0.008998]
[1724855926312,1.29221178,59611.0,59610.0,0.008998]
[1724855926528,1.29721178,59611.0,59610.0,0.008998]
[1724855926747,1.28921178,59611.0,59610.0,0.008998]
[1724855926968,1.29121178,59611.0,59610.0,0.008998]
[1724855927881,0.62019578,59611.0,59610.0,0.008998]
[1724855928145,0.002,59611.0,59610.0,0.653969]
[1724855928350,0.002,59611.0,59610.0,1.012483]
[1724855928634,0.002,59611.0,59610.0,1.35836598]
[1724855928852,0.167707,59628.0,59612.0,0.0778]
[1724855929096,0.335416,59628.0,59621.0,0.0807]
[1724855929317,0.335412,59629.0,59621.0,0.248426]
[1724855929541,0.167715,59625.0,59621.0,0.0807]
[1724855929781,0.167715,59625.0,59622.0,0.01022684]
[1724855930068,0.01465804,59631.0,59622.0,0.01022684]
[1724855930069,0.33541,59629.0,59622.0,0.01022684]
[1724855930293,0.01510349,59631.0,59622.0,0.01022684]
[1724855930294,0.16772,59623.0,59622.0,0.01022684]
[1724855931175,0.335422,59627.0,59622.0,0.01022684]
[1724855931176,0.335424,59626.0,59622.0,0.01022684]
[1724855931432,0.167719,59624.0,59622.0,0.01022684]
[1724855931888,0.001,59628.0,59623.0,0.230719]
[1724855932128,0.001,59628.0,59625.0,0.335428]
[1724855932372,0.168708,59628.0,59624.0,0.0779]
[1724855932611,0.335406,59630.0,59626.0,0.00922684]
[1724855932850,0.167709,59627.0,59625.0,0.01006018]
[1724855933086,0.336409,59629.0,59624.0,0.0779]
[1724855933087,0.001,59629.0,59624.0,0.245617]
[1724855933324,0.168707,59628.0,59626.0,0.01006018]
[1724855933558,0.167707,59628.0,59624.0,0.0779]
[1724855933858,0.167712,59626.0,59624.0,0.0779]
[1724855934075,0.000819,59629.0,59624.0,0.0779]
[1724855934333,0.16771,59627.0,59624.0,0.0779]
[1724855934778,0.001819,59629.0,59624.0,0.245615]
[1724855935006,0.001819,59629.0,59624.0,0.0779]
[1724855935239,0.167707,59628.0,59624.0,0.0779]
[1724855935491,0.503143,59625.0,59624.0,0.0779]
[1724855935744,0.838572,59625.0,59624.0,0.0779]
[1724855936440,0.167714,59625.0,59624.0,0.0779]
[1724855936660,0.503143,59625.0,59624.0,0.0779]
[1724855937331,0.505143,59625.0,59624.0,0.0779]
[1724855937662,0.504143,59625.0,59624.0,0.0779]
[1724855938000,0.503143,59625.0,59624.0,0.0779]
[1724855938237,0.504143,59625.0,59624.0,0.0779]
[1724855938928,0.168714,59625.0,59624.0,0.0779]
[1724855939130,0.169714,59625.0,59624.0,0.0779]
[1724855939366,0.168714,59625.0,59624.0,0.0779]
[1724855939595,0.167714,59625.0,59624.0,0.08757283]
[1724855939798,0.168714,59625.0,59624.0,0.08757283]
[1724855939998,0.169714,59625.0,59624.0,0.08757283]
[1724855940198,0.170714,59625.0,59624.0,0.08757283]
[1724855940434,0.169714,59625.0,59624.0,0.08757283]
[1724855940883,0.506143,59625.0,59624.0,0.08757283]
[1724855941119,0.170714,59625.0,59624.0,0.08757283]
[1724855941383,0.003,59625.0,59624.0,0.08757283]
[1724855941656,0.002,59625.0,59624.0,0.59072483]
[1724855942145,0.002,59625.0,59624.0,0.92615983]
[1724855942375,0.337429,59625.0,59624.0,0.00967283]
[1724855942602,0.940572,59625.0,59624.0,0.00967283]
[1724855942836,0.102,59625.0,59618.0,0.0797]
[1724855943052,0.000819,59629.0,59624.0,0.343435]
[1724855943312,0.000819,59629.0,59628.0,0.503118]
[1724855943533,0.000819,59629.0,59628.0,0.649218]
[1724855943772,0.000819,59629.0,59628.0,0.98463]
[1724855944033,0.000819,59629.0,59628.0,1.35006334]
[1724855944299,0.000819,59629.0,59628.0,1.69047534]
[1724855944513,0.000819,59629.0,59628.0,1.35506334]
[1724855944757,0.01519437,59654.0,59637.0,0.1461]
[1724855944968,0.35274121,59660.0,59636.0,0.005]
[1724855944969,0.167625,59657.0,59653.0,0.0797]
[1724855945217,0.35273921,59660.0,59653.0,0.247335]
[1724855945218,0.167624,59658.0,59653.0,0.247335]
[1724855945429,0.336036,59663.0,59654.0,0.00783742]
[1724855945430,0.000818,59663.0,59654.0,0.00783742]
[1724855945646,0.000818,59663.0,59658.0,0.0814]
[1724855945855,0.502857,59659.0,59658.0,0.0814]
[1724855946086,0.167631,59655.0,59639.0,0.002]
[1724855946302,0.167631,59655.0,59638.0,0.028]
[1724855946303,0.335283,59652.0,59645.0,0.167658]
[1724855946530,0.167648,59649.0,59642.0,0.335332]
[1724855946753,0.335283,59652.0,59644.0,0.167659]
[1724855946957,0.335283,59652.0,59640.0,0.335344]
[1724855946958,0.167649,59649.0,59642.0,0.33533]
[1724855947169,0.335283,59652.0,59641.0,0.335339]
[1724855947384,0.335267,59654.0,59642.0,0.335333]
[1724855947594,0.335267,59654.0,59638.0,0.023]
[1724855947595,0.167634,59654.0,59643.0,0.00335281]
[1724855947808,0.335259,59656.0,59648.0,0.335299]
[1724855948051,0.335259,59656.0,59649.0,0.0655]
[1724855948287,0.335259,59656.0,59639.0,0.33935]
[1724855948288,0.167644,59651.0,59646.0,0.167654]
[1724855948509,0.167644,59651.0,59643.0,0.335325]
[1724855948510,0.167639,59652.0,59647.0,0.167651]
[1724855948741,0.336067,59658.0,59646.0,0.33531]
[1724855948967,0.167629,59656.0,59650.0,0.167642]
[1724855949225,0.167629,59656.0,59651.0,0.16764]
[1724855949429,0.336067,59658.0,59651.0,0.335283]
[1724855949430,0.168442,59658.0,59651.0,0.335283]
[1724855949638,0.1,59657.0,59653.0,0.167635]
[1724855949843,0.1,59657.0,59650.0,0.335285]
[1724855950260,0.1,59657.0,59651.0,0.08325246]
[1724855950471,0.1,59657.0,59654.0,0.0799]
[1724855950682,0.000819,59658.0,59654.0,0.247531]
[1724855950891,0.000819,59658.0,59657.0,0.642773]
[1724855951618,0.000819,59658.0,59657.0,0.978022]
[1724855952128,0.000819,59658.0,59657.0,1.001022]
[1724855952653,0.000819,59658.0,59652.0,0.0755]
[1724855953190,0.000819,59658.0,59654.0,0.008]
[1724855953191,0.001819,59658.0,59654.0,0.008]
[1724855953450,0.170441,59658.0,59657.0,0.006]
[1724855953690,0.000819,59658.0,59652.0,0.0755]
[1724855953931,0.83818,59653.0,59652.0,0.018]
[1724855954219,0.167636,59653.0,59652.0,0.018]
[1724855954488,0.89978,59653.0,59652.0,0.008]
[1724855954705,0.335291,59650.0,59643.0,0.0755]
[1724855954961,0.24784702,59649.0,59648.0,0.50540786]
[1724855955199,0.335307,59647.0,59639.0,0.167675]
[1724855955429,0.167667,59642.0,59638.0,0.0755]
[1724855955698,0.335319,59645.0,59638.0,0.0755]
[1724855955699,0.503026,59639.0,59638.0,0.0755]
[1724855955915,0.167675,59639.0,59638.0,0.0755]
[1724855956390,0.335351,59639.0,59631.0,0.167696]
[1724855956632,0.167685,59636.0,59630.0,0.1452]
[1724855957135,0.167681,59637.0,59632.0,0.167694]
[1724855957386,0.167681,59637.0,59633.0,0.167691]
[1724855957631,0.167679,59638.0,59633.0,0.167691]
[1724855958161,0.001,59636.0,59633.0,0.167691]
[1724855958398,0.001,59636.0,59630.0,0.093]
[1724855958399,0.503094,59631.0,59630.0,0.093]
[1724855958646,1.273886,59631.0,59630.0,0.01]
[1724855959157,1.273886,59631.0,59630.0,0.022]
[1724855959409,1.3159452,59631.0,59630.0,0.012]
[1724855959643,0.503161,59623.0,59622.0,0.0002019]
[1724855960106,0.16772,59623.0,59622.0,0.0002019]
[1724855960311,0.503161,59623.0,59622.0,0.0002019]
[1724855960979,0.504161,59623.0,59622.0,0.0062019]
[1724855961190,0.16872,59623.0,59622.0,0.0062019]
[1724855962450,0.16872,59623.0,59622.0,0.0072019]
[1724855962665,0.16872,59623.0,59622.0,0.02086884]
[1724855962881,0.839602,59623.0,59622.0,0.0062019]
[1724855963122,1.175043,59623.0,59622.0,0.01386884]
[1724855963356,1.341943,59623.0,59622.0,0.0142019]
[1724855963561,1.677384,59623.0,59622.0,0.0142019]
[1724855963984,1.677384,59623.0,59622.0,0.0002019]
[1724855963985,1.675384,59623.0,59622.0,0.0002019]
[1724855964194,1.84393564,59623.0,59622.0,0.0002019]
[1724855964435,1.92073564,59623.0,59622.0,0.0062019]
[1724855964646,1.92273564,59623.0,59622.0,0.0062019]
[1724855964850,1.752184,59623.0,59622.0,0.0062019]
[1724855965489,1.752184,59623.0,59622.0,0.0142019]
[1724855965490,1.753184,59623.0,59622.0,0.0142019]
[1724855965696,1.752184,59623.0,59622.0,0.0082019]
[1724855965916,1.91973564,59623.0,59622.0,0.0022019]
[1724855966123,1.91973564,59623.0,59622.0,0.0002019]
[1724855966333,1.764184,59623.0,59622.0,0.0012019]
[1724855966554,1.778184,59623.0,59622.0,0.0012019]
[1724855966766,1.031502,59623.0,59622.0,0.0012019]
[1724855966974,0.01467853,59628.0,59622.0,0.0012019]
[1724855966975,0.33542,59627.0,59622.0,0.0795019]
[1724855967205,0.07850521,59632.0,59622.0,0.0805019]
[1724855967206,0.027,59623.0,59622.0,0.0805019]
[1724855967418,0.027,59623.0,59622.0,0.2482249]
[1724855967839,0.19472,59623.0,59622.0,0.0805019]
[1724855968062,0.19472,59623.0,59610.0,0.088898]
[1724855968063,0.167754,59611.0,59610.0,0.088898]
[1724855968360,0.15570002,59623.0,59610.0,0.088898]
[1724855968567,0.167734,59618.0,59614.0,0.167745]
[1724855968773,0.10100002,59622.0,59610.0,0.088898]
[1724855968979,0.335479,59617.0,59610.0,0.088898]
[1724855969185,0.00100002,59622.0,59610.0,0.088898]
[1724855969186,0.33549,59615.0,59610.0,0.088898]
[1724855969391,0.167746,59614.0,59610.0,0.256654]
[1724855969644,0.167746,59614.0,59610.0,0.089898]
[1724855969859,0.435481,59616.0,59610.0,0.089898]
[1724855970072,0.335486,59615.0,59610.0,0.088898]
[1724855970280,0.335497,59613.0,59610.0,0.091898]
[1724855970490,0.503262,59611.0,59610.0,0.097898]
[1724855970700,0.83877,59611.0,59610.0,0.094898]
[1724855970909,0.83877,59611.0,59610.0,0.099898]
[1724855971125,0.83877,59611.0,59610.0,0.094898]
[1724855971338,0.503262,59611.0,59610.0,0.094898]
[1724855971551,0.503262,59611.0,59610.0,0.099898]
[1724855971757,0.83877,59611.0,59610.0,0.093898]
[1724855971967,0.83877,59611.0,59610.0,0.099898]
[1724855972191,0.503262,59611.0,59610.0,0.099898]
[1724855972427,0.503262,59611.0,59610.0,0.093898]
[1724855972890,0.504262,59611.0,59610.0,0.098898]
[1724855973118,0.505262,59611.0,59610.0,0.101898]
[1724855973322,0.504262,59611.0,59610.0,0.091898]
[1724855973534,0.504262,59611.0,59610.0,0.094898]
[1724855973535,0.505262,59611.0,59610.0,0.094898]
[1724855973737,0.506262,59611.0,59610.0,0.096898]
[1724855974376,0.170754,59611.0,59610.0,0.096898]
[1724855975231,0.003,59611.0,59610.0,0.096898]
[1724855975437,0.002,59611.0,59610.0,0.090898]
[1724855975648,0.002,59611.0,59610.0,0.258655]
[1724855975915,0.001,59611.0,59610.0,0.96103781]
[1724855976192,0.001,59611.0,59610.0,1.35965181]
[1724855976401,0.001,59611.0,59610.0,1.35565181]
[1724855976609,0.001,59611.0,59610.0,1.35465181]
[1724855976820,0.001,59611.0,59610.0,1.35265181]
[1724855977026,0.003,59611.0,59610.0,1.70616581]
[1724855977248,0.003,59611.0,59610.0,2.21678577]
[1724855977249,0.001,59611.0,59610.0,2.21678577]
[1724855977455,0.335336,59642.0,59635.0,0.585759]
[1724855977661,0.335337,59642.0,59635.0,0.250386]
[1724855977889,0.167681,59637.0,59635.0,0.0827]
[1724855978112,0.167681,59637.0,59635.0,0.0817]
[1724855978335,0.167676,59639.0,59635.0,0.0817]
[1724855978548,0.335337,59642.0,59635.0,0.249386]
[1724855978759,0.167676,59639.0,59635.0,0.25273934]
[1724855978969,0.167676,59639.0,59635.0,0.249386]
[1724855979173,0.167678,59638.0,59635.0,0.0817]
[1724855979585,0.001819,59636.0,59635.0,0.0887]
[1724855980028,0.169502,59636.0,59635.0,0.0887]
[1724855980233,0.000819,59636.0,59635.0,0.0817]
[1724855980652,0.001819,59636.0,59635.0,0.0887]
[1724855981091,0.000819,59636.0,59635.0,0.584759]
[1724855981313,0.000819,59636.0,59635.0,0.255386]
[1724855981536,0.001819,59636.0,59635.0,0.0877]
[1724855981758,0.001819,59636.0,59635.0,0.0817]
[1724855982707,0.001819,59636.0,59635.0,0.249386]
[1724855982921,0.002819,59636.0,59635.0,0.0917]
[1724855983327,0.003819,59636.0,59635.0,0.0987]
[1724855983798,0.506869,59636.0,59635.0,0.017]
[1724855984226,0.841236,59636.0,59635.0,0.007]
[1724855984647,0.841236,59636.0,59635.0,0.017]
[1724855984648,0.506869,59636.0,59635.0,0.017]
[1724855984861,0.504869,59636.0,59635.0,0.01]
[1724855985094,0.504869,59636.0,59631.0,0.0785]
[1724855985095,0.16769,59634.0,59631.0,0.0785]
[1724855985539,0.337186,59636.0,59631.0,0.0785]
[1724855985993,0.335374,59635.0,59631.0,0.0785]
[1724855986197,0.167691,59634.0,59631.0,0.0785]
[1724855986426,0.335374,59635.0,59631.0,0.0785]
[1724855986847,0.167695,59632.0,59631.0,0.0785]
[1724855987051,0.001819,59636.0,59631.0,0.0785]
[1724855987257,0.169503,59636.0,59632.0,0.167694]
[1724855987465,0.001,59634.0,59632.0,0.167694]
[1724855988109,0.001,59634.0,59633.0,0.8418136]
[1724855988361,0.001,59634.0,59633.0,0.9204136]
[1724855988809,0.002,59634.0,59633.0,0.9204136]
[1724855989432,0.001,59634.0,59633.0,0.9204136]
[1724855989632,0.002,59634.0,59633.0,0.9294136]